bitfinex/quotes_ETHUSD_20240707
["timestamp","ask_amount","ask_price","bid_price","bid_amount"]
[1720316856151,0.06560928,3054.6,3054.3,3.27397]
[1720316856326,2.5620502,3054.5,3054.3,3.27397]
[1720316856521,2.62765948,3054.4,3053.7,3.2747]
[1720316856750,4.5504,3054.2,3053.7,3.2747]
[1720316856919,2.62765948,3054.1,3053.7,3.2747]
[1720316857125,0.06560928,3054.1,3053.7,3.2747]
[1720316857327,2.56233484,3054.0,3053.7,3.2747]
[1720316857535,2.62794412,3053.9,3053.7,3.2747]
[1720316857740,0.06560928,3054.1,3053.7,3.2747]
[1720316857944,2.56236997,3054.0,3053.7,3.2747]
[1720316858215,0.52721021,3054.1,3053.7,3.2747]
[1720316858216,2.62797925,3053.9,3053.7,3.2747]
[1720316858463,0.52721021,3054.1,3053.7,3.2747]
[1720316858655,2.56237618,3054.0,3053.7,3.2747]
[1720316858959,2.62798546,3053.9,3053.5,3.2749]
[1720316859166,0.26279855,3053.8,3053.3,3.27507]
[1720316859323,0.06560928,3053.7,3053.4,3.0]
[1720316860047,0.06560928,3053.8,3053.4,6.27497]
[1720316861134,0.06560928,3053.8,3053.5,0.04726883]
[1720316861338,0.06560928,3054.0,3053.5,3.32208883]
[1720316861539,1.0868703,3054.0,3053.5,3.32208883]
[1720316861928,1.0868703,3054.0,3053.7,3.27463]
[1720316862264,6.006,3053.9,3053.8,0.04719871]
[1720316862679,6.006,3053.9,3053.7,3.27463]
[1720316862829,6.006,3053.9,3053.8,0.04719871]
[1720316863030,7.4978862,3053.9,3053.8,0.04719871]
[1720316863251,7.4978862,3053.9,3053.7,3.27463]
[1720316863463,7.4978862,3053.9,3053.8,0.04719871]
[1720316863778,7.4978862,3053.9,3053.7,3.27463]
[1720316863977,0.06560928,3053.8,3053.7,3.27463]
[1720316865261,6.006,3053.9,3053.7,3.27463]
[1720316865435,6.07160928,3053.9,3053.7,3.27463]
[1720316866275,6.78089631,3053.9,3053.7,3.27463]
[1720316866580,6.78089631,3053.9,3053.5,3.27482]
[1720316866740,2.56242934,3053.8,3053.6,3.27481]
[1720316867074,0.06560928,3053.8,3053.7,0.04751211]
[1720316867278,2.6283211,3053.8,3053.7,0.04751211]
[1720316867570,3.66480802,3053.8,3053.7,0.04751211]
[1720316868166,3.66480802,3053.8,3053.3,3.27507]
[1720316868484,2.56271182,3053.7,3053.3,3.27507]
[1720316868649,0.06560928,3053.6,3053.4,3.32261819]
[1720316869768,0.06560928,3053.7,3053.4,3.32261819]
[1720316869982,0.3739796,3053.6,3053.4,3.32261819]
[1720316870146,2.7389796,3053.6,3053.4,3.32261819]
[1720316870349,0.06560928,3053.5,3053.4,0.04759819]
[1720316870755,0.06560928,3053.5,3053.0,3.27536]
[1720316870756,2.62862538,3053.5,3053.0,3.27536]
[1720316871056,2.5630738,3053.4,3052.9,3.27556]
[1720316871369,0.32847759,3053.3,3053.0,0.04775628]
[1720316871571,0.06560928,3053.2,3053.0,0.04775628]
[1720316871771,0.06560928,3053.5,3053.0,0.04775628]
[1720316872086,1.42902342,3053.4,3053.0,0.04775628]
[1720316872289,0.06560928,3053.3,3053.0,0.04775628]
[1720316872643,0.06560928,3053.3,3053.0,3.32321628]
[1720316874680,0.06560928,3053.3,3053.0,0.04775628]
[1720316876885,0.06560928,3053.3,3053.0,3.32320628]
[1720316877386,0.06560928,3053.3,3053.1,3.27531]
[1720316877552,0.12271778,3053.4,3053.1,3.27531]
[1720316877751,0.12271778,3053.4,3053.2,0.04781971]
[1720316877954,0.12271778,3053.4,3053.1,3.27531]
[1720316879073,0.12271778,3053.4,3053.2,0.04781971]
[1720316879275,0.4057637,3053.4,3053.2,0.04781971]
[1720316879786,0.957,3053.3,3053.2,0.04781971]
[1720316881399,2.0911311,3053.3,3053.2,0.04781971]
[1720316882798,2.0911311,3053.3,3053.2,3.32306971]
[1720316883967,1.1341311,3053.3,3053.2,3.32306971]
[1720316884191,1.1341311,3053.3,3053.2,6.59831971]
[1720316884366,1.0141085,3053.4,3053.3,6.55028]
[1720316884562,0.0571085,3053.4,3053.3,6.59827159]
[1720316884864,6.006,3053.7,3053.3,6.59827159]
[1720316884865,0.957,3053.6,3053.5,6.54986]
[1720316885412,0.957,3053.6,3053.5,6.59781244]
[1720316885759,6.006,3053.7,3053.6,6.54964]
[1720316885959,6.006,3053.7,3053.6,6.5975341]
[1720316886707,7.13984291,3053.7,3053.6,6.5975341]
[1720316886865,6.006,3053.7,3053.6,6.5975341]
[1720316888395,7.13983321,3053.7,3053.6,6.5975341]
[1720316889399,7.13982125,3053.7,3053.6,6.5975341]
[1720316890766,6.006,3053.7,3053.6,6.5975341]
[1720316894191,12.28,3054.1,3053.9,6.549]
[1720316894401,8.56376005,3054.0,3053.9,6.549]
[1720316894628,8.56375554,3054.0,3053.9,6.59649346]
[1720316895305,7.43,3054.0,3053.9,6.59649346]
[1720316897246,10.53474217,3054.0,3053.9,6.59649346]
[1720316897405,9.401,3054.0,3053.9,6.59649346]
[1720316897609,10.53476756,3054.0,3053.9,3.32199346]
[1720316898515,8.56376756,3054.0,3053.9,3.32199346]
[1720316899015,8.56376756,3054.0,3053.9,6.59649346]
[1720316899214,7.43,3054.0,3053.9,6.59649346]
[1720316899814,7.48709401,3054.3,3054.2,3.27417]
[1720316900017,5.11765169,3054.3,3054.2,3.27417]
[1720316900354,5.11765169,3054.3,3054.2,3.32157057]
[1720316900665,3.68917097,3054.3,3054.2,6.59574057]
[1720316900819,2.61917343,3054.3,3054.2,6.59574057]
[1720316902130,2.61917343,3054.3,3054.2,3.32157057]
[1720316904028,2.61922529,3054.3,3054.2,3.32157057]
[1720316904451,1.48552149,3054.3,3054.2,3.32157057]
[1720316904618,2.61919409,3054.3,3054.2,3.32157057]
[1720316905936,3.57519409,3054.3,3054.2,3.32157057]
[1720316906141,5.10737443,3054.3,3054.2,3.32157057]
[1720316907248,5.10744381,3054.3,3054.2,3.32157057]
[1720316907461,5.10745278,3054.3,3054.2,3.32157057]
[1720316908995,5.10745278,3054.3,3054.2,0.04740057]
[1720316909146,5.45007377,3054.3,3054.2,0.04740057]
[1720316909472,5.45007377,3054.3,3054.0,3.27433]
[1720316909681,0.956,3054.1,3054.0,3.27433]
[1720316909841,3.51817843,3054.1,3054.0,3.27433]
[1720316910545,3.51831102,3054.1,3054.0,3.27433]
[1720316911476,2.08976594,3054.1,3054.0,6.54872]
[1720316911653,2.08976594,3054.1,3054.0,6.59611416]
[1720316912781,2.08976594,3054.1,3054.0,12.33790416]
[1720316912782,1.13376594,3054.1,3054.0,12.33790416]
[1720316912945,0.956,3054.2,3054.1,6.54856]
[1720316913374,2.08960827,3054.2,3054.1,6.59589358]
[1720316913883,2.08959899,3054.2,3054.1,6.59589358]
[1720316914257,0.956,3054.2,3054.1,6.59589358]
[1720316914660,2.08959503,3054.2,3054.1,6.59589358]
[1720316915168,9.316,3054.5,3054.1,3.32161358]
[1720316915373,9.316,3054.5,3054.4,6.54792]
[1720316915573,11.40557222,3054.5,3054.4,6.54792]
[1720316915906,11.40557222,3054.5,3054.4,6.59519487]
[1720316916044,10.44957222,3054.5,3054.4,6.59519487]
[1720316916251,11.40557222,3054.5,3054.4,6.59519487]
[1720316917147,10.272,3054.5,3054.4,6.59519487]
[1720316917451,11.40559108,3054.5,3054.4,6.59519487]
[1720316920548,10.272,3054.5,3054.4,6.59519487]
[1720316920878,11.40558252,3054.5,3054.4,6.59519487]
[1720316921786,12.8338975,3054.5,3054.4,6.59519487]
[1720316923898,12.83390536,3054.5,3054.4,6.59519487]
[1720316924254,12.83390943,3054.5,3054.4,6.59519487]
[1720316925165,12.83392097,3054.5,3054.4,6.59519487]
[1720316926863,8.56792097,3054.5,3054.4,9.86915487]
[1720316927064,6.962,3054.5,3054.4,9.86915487]
[1720316927399,8.09546239,3054.5,3054.4,9.86915487]
[1720316929398,9.52363557,3054.5,3054.4,9.86915487]
[1720316929993,9.52363557,3054.5,3054.4,6.59519487]
[1720316930464,8.09546239,3054.5,3054.4,6.59519487]
[1720316930670,9.52372633,3054.5,3054.4,6.59519487]
[1720316933699,6.962,3054.5,3054.4,6.59519487]
[1720316933917,9.52389451,3054.5,3054.4,6.59519487]
[1720316934207,9.52387856,3054.5,3054.4,6.59519487]
[1720316934408,9.52387856,3054.5,3054.4,3.32123487]
[1720316934844,10.72177642,3054.5,3054.4,3.32123487]
[1720316935452,12.69919038,3054.5,3054.4,3.32123487]
[1720316935756,15.15429038,3054.5,3054.4,0.04727487]
[1720316935904,15.49689843,3054.5,3054.4,0.04727487]
[1720316936317,15.49689843,3054.5,3054.2,3.27413]
[1720316936606,0.956,3054.3,3054.2,3.27413]
[1720316936929,1.02160928,3054.3,3054.2,3.27413]
[1720316937136,3.5838992,3054.3,3054.2,3.27413]
[1720316937347,5.56144674,3054.3,3054.2,3.27413]
[1720316939871,4.53983746,3054.3,3054.2,3.27413]
[1720316940159,3.51828992,3054.3,3054.2,3.27413]
[1720316940371,3.51806491,3054.3,3054.2,3.27413]
[1720316941656,5.49556395,3054.3,3054.2,3.32135743]
[1720316942480,3.51806491,3054.3,3054.2,3.32135743]
[1720316942830,3.51818001,3054.3,3054.2,3.32135743]
[1720316943257,2.56218001,3054.3,3054.2,3.32135743]
[1720316943578,3.51818001,3054.3,3054.2,3.32135743]
[1720316943725,5.49566408,3054.3,3054.2,3.32135743]
[1720316943929,3.51818001,3054.3,3054.2,3.32135743]
[1720316944229,3.51816185,3054.3,3054.2,3.32135743]
[1720316944627,2.56216185,3054.3,3054.2,6.59552743]
[1720316944968,2.56216185,3054.3,3054.2,9.86969743]
[1720316945955,6.006,3054.5,3054.4,6.54792]
[1720316946177,8.56779592,3054.5,3054.4,6.54792]
[1720316946465,8.56779592,3054.5,3054.4,6.59514702]
[1720316946944,9.52379592,3054.5,3054.4,6.59514702]
[1720316947139,8.56779592,3054.5,3054.4,6.59514702]
[1720316947346,8.56779592,3054.5,3054.4,9.06034702]
[1720316949062,2.56179592,3054.5,3054.4,12.33430702]
[1720316949263,7.43,3055.0,3054.9,3.27342]
[1720316949582,8.46357923,3055.2,3055.0,3.27332]
[1720316949877,8.80459188,3055.1,3055.0,3.32040004]
[1720316951195,6.82749074,3055.1,3055.0,3.32040004]
[1720316951364,8.80461554,3055.1,3055.0,3.32040004]
[1720316951881,5.87149074,3055.1,3055.0,3.32040004]
[1720316952088,6.82749074,3055.1,3055.0,3.32040004]
[1720316952685,6.82748289,3055.1,3055.0,3.32040004]
[1720316952850,4.266,3055.1,3055.0,3.32040004]
[1720316953048,5.87150595,3055.1,3055.0,6.59372004]
[1720316953247,6.82750595,3055.1,3055.0,6.59372004]
[1720316953734,6.82750595,3055.1,3055.0,3.32040004]
[1720316953854,8.11656447,3055.1,3055.0,3.32040004]
[1720316955292,6.82750595,3055.1,3055.0,3.32040004]
[1720316955789,5.39939534,3055.1,3055.0,3.32040004]
[1720316956088,6.8274735,3055.1,3055.0,3.32040004]
[1720316957669,11.75340674,3055.1,3055.0,0.04708004]
[1720316957984,17.10959766,3055.1,3055.0,0.04708004]
[1720316958290,2.3332,3055.0,3054.4,3.27394]
[1720316958506,0.956,3054.5,3054.4,3.27394]
[1720316958702,3.5174735,3054.5,3054.4,3.27394]
[1720316959058,3.51808329,3054.5,3054.4,3.27394]
[1720316959975,3.51808329,3054.5,3054.2,3.2741]
[1720316960192,0.956,3054.3,3054.2,3.27408]
[1720316960508,3.51808329,3054.3,3054.2,3.27408]
[1720316962292,3.51821649,3054.3,3054.2,3.27408]
[1720316962665,2.08972411,3054.3,3054.2,3.27408]
[1720316962999,3.51821737,3054.3,3054.2,3.27408]
[1720316963757,3.51821805,3054.3,3054.2,3.27408]
[1720316964310,6.68809535,3054.3,3053.9,3.27445]
[1720316964602,0.956,3054.1,3053.9,3.27445]
[1720316964763,2.62782733,3054.0,3053.9,3.27445]
[1720316965476,0.06560928,3054.0,3053.9,3.27445]
[1720316965661,1.1993843,3054.0,3053.9,3.27445]
[1720316965861,2.62794082,3054.0,3053.9,3.27445]
[1720316967708,2.9863349,3054.0,3053.7,3.27468]
[1720316967872,0.956,3053.8,3053.7,3.27468]
[1720316968074,3.58394082,3053.8,3053.7,3.27468]
[1720316968829,1.02160928,3053.8,3053.7,3.27468]
[1720316969027,0.956,3053.8,3053.7,3.27468]
[1720316969343,2.38468324,3053.8,3053.7,3.27468]
[1720316969638,3.51845091,3053.8,3053.7,3.27468]
[1720316971738,3.51845091,3053.8,3053.7,3.32024401]
[1720316972153,3.51851987,3053.8,3053.7,3.32024401]
[1720316972442,0.956,3053.8,3053.7,3.32024401]
[1720316972655,2.08985828,3053.8,3053.7,3.32024401]
[1720316972961,3.51851971,3053.8,3053.7,3.32024401]
[1720316973117,2.38465365,3053.8,3053.7,3.32024401]
[1720316973326,2.56250576,3053.8,3053.7,3.32024401]
[1720316973529,0.956,3053.8,3053.7,3.32024401]
[1720316973949,3.51850529,3053.8,3053.7,3.32024401]
[1720316974359,2.38465339,3053.8,3053.7,3.32024401]
[1720316974666,3.51851154,3053.8,3053.7,3.32024401]
[1720316975144,3.51851324,3053.8,3053.7,3.32024401]
[1720316975358,2.38465339,3053.8,3053.7,3.32024401]
[1720316975537,0.956,3053.8,3053.7,3.32024401]
[1720316975943,2.38465417,3053.8,3053.7,3.32024401]
[1720316977362,1.42865417,3053.8,3053.7,3.32024401]
[1720316977530,0.956,3053.8,3053.7,3.32027401]
[1720316977731,0.06560928,3054.0,3053.8,3.27456]
[1720316977928,3.5184579,3053.9,3053.8,3.27456]
[1720316978826,0.956,3053.9,3053.8,3.27456]
[1720316979029,2.08985276,3053.9,3053.8,3.27456]
[1720316979364,3.51850723,3053.9,3053.8,3.27456]
[1720316982251,3.51843311,3053.9,3053.8,3.27456]
[1720316982445,3.51843307,3053.9,3053.8,3.27456]
[1720316982641,0.956,3053.9,3053.8,3.27456]
[1720316982846,2.38461318,3053.9,3053.8,3.27456]
[1720316983069,3.51843316,3053.9,3053.8,3.27456]
[1720316983272,2.08981998,3053.9,3053.8,3.27456]
[1720316983805,3.51847391,3053.9,3053.8,3.27456]
[1720316984348,1.13381998,3053.9,3053.8,3.27456]
[1720316984574,2.08981998,3053.9,3053.8,3.27456]
[1720316984758,1.13381998,3053.9,3053.8,6.54916]
[1720316984948,0.05709067,3054.3,3054.2,3.27417]
[1720316985148,1.01309067,3054.3,3054.2,3.27417]
[1720316985488,2.61919744,3054.3,3054.2,6.54834]
[1720316985669,1.19076232,3054.3,3054.2,6.54834]
[1720316985854,6.006,3054.5,3054.4,6.54792]
[1720316986183,7.43,3055.2,3055.0,3.27332]
[1720316986339,8.42058891,3055.1,3055.0,3.27332]
[1720316986662,9.37658891,3055.1,3055.0,3.27332]
[1720316987686,8.42058891,3055.1,3055.0,3.27332]
[1720316987915,6.82750891,3055.1,3055.0,3.27332]
[1720316988077,6.89311819,3055.1,3055.0,3.31898956]
[1720316988588,4.33160928,3055.1,3055.0,3.31898956]
[1720316988914,6.89306209,3055.1,3055.0,3.31898956]
[1720316989422,5.46499548,3055.1,3055.0,3.31898956]
[1720316989626,6.89300696,3055.1,3055.0,3.31898956]
[1720316990309,6.82739768,3055.1,3055.0,3.31898956]
[1720316990514,6.8274357,3055.1,3055.0,3.31898956]
[1720316990715,6.82741887,3055.1,3055.0,3.31898956]
[1720316990914,6.82743647,3055.1,3055.0,3.31898956]
[1720316991225,6.82746174,3055.1,3055.0,3.31898956]
[1720316991813,5.69412249,3055.1,3055.0,3.31898956]
[1720316992018,6.82751814,3055.1,3055.0,3.31898956]
[1720316992179,4.266,3055.1,3055.0,3.31898956]
[1720316992488,6.82747505,3055.1,3055.0,3.31898956]
[1720316993229,5.39939604,3055.1,3055.0,6.59230956]
[1720316993379,5.39939604,3055.1,3055.0,3.31898956]
[1720316993579,7.97456058,3055.1,3055.0,3.31898956]
[1720316995000,5.41310053,3055.1,3055.0,3.31898956]
[1720316995216,6.82748149,3055.1,3055.0,3.31898956]
[1720316995520,6.82748149,3055.1,3055.0,6.59230956]
[1720316996718,6.82745322,3055.1,3055.0,6.59230956]
[1720316997526,5.87145322,3055.1,3055.0,6.59230956]
[1720316997687,5.39939883,3055.1,3055.0,6.59230956]
[1720316997887,6.82741346,3055.1,3055.0,6.59230956]
[1720316998287,5.69401463,3055.1,3055.0,3.31898956]
[1720316998482,6.82743736,3055.1,3055.0,3.31898956]
[1720316998906,5.39937936,3055.1,3055.0,6.59230956]
[1720316999430,6.82743468,3055.1,3055.0,6.59230956]
[1720317000288,5.87143468,3055.1,3055.0,6.59230956]
[1720317000484,3.31,3055.1,3055.0,6.59230956]
[1720317000732,4.266,3055.1,3055.0,6.59230956]
[1720317006102,4.266,3055.1,3055.0,3.31898956]
[1720317006432,5.39938188,3055.1,3055.0,3.31898956]
[1720317006802,5.39938188,3055.1,3055.0,6.59230956]
[1720317007234,0.956,3055.1,3055.0,6.59230956]
[1720317008023,6.006,3055.3,3055.2,6.5462]
[1720317008230,8.09532379,3055.3,3055.2,6.5462]
[1720317008528,8.09532379,3055.3,3055.2,6.59145234]
[1720317009796,10.3386138,3055.3,3055.2,3.31835234]
[1720317010722,9.20532484,3055.3,3055.2,3.31835234]
[1720317010919,10.3387253,3055.3,3055.2,3.31835234]
[1720317011132,10.3387018,3055.3,3055.2,3.31835234]
[1720317011300,12.7922018,3055.3,3055.2,0.04525234]
[1720317011511,13.68457921,3055.3,3055.2,0.04525234]
[1720317011810,13.68457921,3055.3,3055.0,3.27324]
[1720317011987,0.956,3055.1,3055.0,3.27324]
[1720317012194,1.13339006,3055.1,3055.0,3.27324]
[1720317012415,6.34837741,3055.3,3054.7,0.06546909]
[1720317012416,0.956,3055.2,3055.1,6.54642]
[1720317012615,2.08933112,3055.2,3055.1,6.54642]
[1720317013332,1.13333112,3055.2,3055.1,6.54642]
[1720317013543,1.13333112,3055.2,3055.1,8.82262]
[1720317014035,6.962,3055.3,3055.2,6.5462]
[1720317014217,8.09525723,3055.3,3055.2,6.5462]
[1720317016724,8.09525723,3055.3,3055.2,6.59146145]
[1720317017239,8.09524743,3055.3,3055.2,6.59146145]
[1720317018097,9.15583006,3055.3,3055.2,0.04526145]
[1720317018296,11.13387113,3055.3,3055.2,0.04526145]
[1720317018505,11.47637882,3055.3,3055.0,3.27328]
[1720317018800,0.956,3055.1,3055.0,3.27328]
[1720317019021,2.08924743,3055.1,3055.0,3.27328]
[1720317019720,3.51738516,3055.1,3055.0,3.27328]
[1720317020231,0.956,3055.1,3055.0,3.27328]
[1720317020398,2.08943659,3055.1,3055.0,3.27328]
[1720317020599,0.956,3055.1,3055.0,3.27328]
[1720317020818,2.08943883,3055.1,3055.0,3.27328]
[1720317021021,3.51757175,3055.1,3055.0,3.27328]
[1720317021435,4.67179889,3055.1,3054.8,3.27348]
[1720317021599,2.62718103,3055.0,3054.9,3.27337]
[1720317021803,3.58323688,3055.0,3054.9,3.27337]
[1720317023537,3.58328789,3055.0,3054.9,3.27337]
[1720317025504,3.51753845,3055.0,3054.9,3.27337]
[1720317026903,3.51755498,3055.0,3054.9,3.27337]
[1720317030254,2.56147867,3055.0,3054.9,6.54679]
[1720317030417,2.56147867,3055.0,3054.9,12.30971]
[1720317030939,6.962,3055.3,3055.2,6.5462]
[1720317031144,9.52319289,3055.3,3055.2,6.5462]
[1720317031545,9.52319289,3055.3,3055.2,6.59145688]
[1720317031848,6.962,3055.3,3055.2,6.59145688]
[1720317032053,9.52318206,3055.3,3055.2,6.63305397]
[1720317033328,9.52314711,3055.3,3055.2,6.63305397]
[1720317033526,6.962,3055.3,3055.2,6.63305397]
[1720317033724,9.22851091,3055.3,3055.2,6.63305397]
[1720317033950,10.65641389,3055.3,3055.2,6.63305397]
[1720317036929,8.09525458,3055.3,3055.2,6.63305397]
[1720317037128,10.65644673,3055.3,3055.2,6.63305397]
[1720317039265,14.47599578,3055.3,3055.2,0.08685397]
[1720317039563,14.47599578,3055.3,3055.2,3.2731]
[1720317040265,9.93776587,3055.3,3055.2,3.35981507]
[1720317040559,14.47614081,3055.3,3055.2,3.35981507]
[1720317040734,11.91482649,3055.3,3055.2,3.35981507]
[1720317040926,14.47624456,3055.3,3055.2,3.35981507]
[1720317041845,14.47623462,3055.3,3055.2,3.35981507]
[1720317044743,12.63372333,3055.3,3055.2,3.35981507]
[1720317046038,9.22862258,3055.3,3055.2,3.35981507]
[1720317046239,12.63375643,3055.3,3055.2,3.35981507]
[1720317046868,8.09525458,3055.3,3055.2,3.35981507]
[1720317047034,12.63371519,3055.3,3055.2,3.35981507]
[1720317049365,14.47984671,3055.3,3055.2,3.35981507]
[1720317049575,14.47984671,3055.3,3055.2,0.08671507]
[1720317049746,15.37235203,3055.3,3055.0,3.27331]
[1720317049941,0.956,3055.1,3055.0,3.27331]
[1720317050472,3.51754071,3055.1,3055.0,3.27331]
[1720317050769,5.49469913,3055.1,3055.0,3.27331]
[1720317052162,4.53869913,3055.1,3055.0,3.27331]
[1720317052476,3.5175596,3055.1,3055.0,3.27331]
[1720317053175,5.49464742,3055.1,3055.0,3.27331]
[1720317053334,5.5602567,3055.1,3055.0,3.27331]
[1720317053535,5.56025728,3055.1,3055.0,3.27331]
[1720317054851,3.58313606,3055.1,3055.0,3.27331]
[1720317055642,5.56025148,3055.1,3055.0,3.27331]
[1720317056077,5.56025148,3055.1,3054.8,3.27346]
[1720317056243,4.5386422,3055.0,3054.9,3.27342]
[1720317056439,5.4946422,3055.0,3054.9,3.27342]
[1720317056644,0.956,3055.0,3054.9,3.27342]
[1720317056877,3.51755081,3055.0,3054.9,3.27342]
[1720317059991,2.4539,3054.9,3053.8,2.3496]
[1720317060186,2.4539,3054.9,3054.1,3.27421]
[1720317060187,2.4539,3054.7,3054.1,3.27421]
[1720317060420,0.956,3054.2,3053.9,3.27442]
[1720317060683,2.5623103,3054.1,3054.0,3.27439]
[1720317060977,3.5183103,3054.1,3054.0,6.54878]
[1720317061574,2.08976562,3054.1,3054.0,6.62427755]
[1720317061774,3.51820853,3054.1,3054.0,6.62427755]
[1720317062342,0.956,3054.1,3054.0,6.62427755]
[1720317062759,2.08968382,3054.1,3054.0,6.62427755]
[1720317062959,3.51812543,3054.1,3054.0,6.62427755]
[1720317064862,2.38444161,3054.1,3054.0,6.62427755]
[1720317065402,3.5181256,3054.1,3054.0,6.62427755]
[1720317065594,0.956,3054.1,3054.0,6.62427755]
[1720317065800,2.08968047,3054.1,3054.0,6.62427755]
[1720317065962,3.51811786,3054.1,3054.0,3.34988755]
[1720317066164,1.13368047,3054.1,3054.0,6.62427755]
[1720317066423,0.956,3054.3,3054.2,6.54834]
[1720317066907,0.956,3054.3,3054.2,6.62397105]
[1720317067262,3.51791212,3054.3,3054.2,6.62397105]
[1720317067470,2.38430708,3054.3,3054.2,6.62397105]
[1720317067665,3.51792635,3054.3,3054.2,0.07563105]
[1720317067990,3.51792635,3054.3,3054.2,3.27417]
[1720317068166,3.51792635,3054.3,3054.2,3.34978966]
[1720317069008,3.51804699,3054.3,3054.2,3.34978966]
[1720317069303,2.38439811,3054.3,3054.2,3.34978966]
[1720317069493,3.5180474,3054.3,3054.2,3.34978966]
[1720317070386,3.51807913,3054.3,3054.2,3.34978966]
[1720317072203,2.38445831,3054.3,3054.2,3.34978966]
[1720317072371,3.51815538,3054.3,3054.2,3.34978966]
[1720317074103,3.51815538,3054.3,3054.2,6.62395966]
[1720317074104,2.56215538,3054.3,3054.2,6.62395966]
[1720317074284,0.956,3054.4,3054.3,6.54814]
[1720317074489,2.38432952,3054.4,3054.3,6.54814]
[1720317074672,2.38432952,3054.4,3054.3,3.34980083]
[1720317074673,3.51792368,3054.4,3054.3,3.34980083]
[1720317075121,3.51792368,3054.4,3054.3,0.07573083]
[1720317075317,3.51812254,3054.4,3054.3,0.07573083]
[1720317075536,3.51812254,3054.4,3054.1,3.27421]
[1720317075829,1.19929182,3054.3,3054.2,3.34985176]
[1720317075990,2.08968254,3054.3,3054.2,3.34985176]
[1720317076885,3.51810561,3054.3,3054.2,3.34985176]
[1720317077087,2.08968254,3054.3,3054.2,3.34985176]
[1720317077321,3.51810998,3054.3,3054.2,3.34985176]
[1720317078702,3.51816774,3054.3,3054.2,3.34985176]
[1720317079213,3.51815547,3054.3,3054.2,3.34985176]
[1720317080328,0.12269664,3054.5,3054.3,3.27402]
[1720317080508,3.5180604,3054.4,3054.3,3.27402]
[1720317082129,3.51799946,3054.4,3054.3,3.27402]
[1720317082583,2.56199946,3054.4,3054.3,6.54809]
[1720317082782,1.13362808,3054.4,3054.3,6.54809]
[1720317082982,2.08962808,3054.4,3054.3,6.54809]
[1720317085225,0.956,3054.4,3054.3,6.54809]
[1720317085428,0.05708736,3054.5,3054.4,6.54792]
[1720317085585,3.57493353,3054.5,3054.4,6.54792]
[1720317085789,1.1335563,3054.5,3054.4,6.54792]
[1720317086011,2.0895563,3054.5,3054.4,6.54792]
[1720317086619,3.51783801,3054.5,3054.4,6.54792]
[1720317087127,3.51784747,3054.5,3054.4,6.54792]
[1720317088416,0.956,3054.5,3054.4,6.54792]
[1720317088620,3.51790181,3054.5,3054.4,6.54792]
[1720317088817,2.08958487,3054.5,3054.4,6.54792]
[1720317089006,3.51787535,3054.5,3054.4,6.54792]
[1720317091595,3.51787535,3054.5,3054.4,6.62364586]
[1720317091809,2.08956934,3054.5,3054.4,6.62364586]
[1720317092010,3.51786702,3054.5,3054.4,6.62364586]
[1720317093499,0.956,3054.5,3054.4,6.62364586]
[1720317093848,2.5618609,3054.5,3054.4,9.00954586]
[1720317094005,1.13356677,3054.5,3054.4,12.28350586]
[1720317094204,0.12268954,3055.1,3055.0,3.27332]
[1720317094410,2.61863468,3055.1,3055.0,3.27332]
[1720317094740,3.57463468,3055.1,3055.0,6.62216285]
[1720317095106,2.44109111,3055.1,3055.0,6.62216285]
[1720317095341,3.57443305,3055.1,3055.0,6.62216285]
[1720317098446,2.44107007,3055.1,3055.0,6.62216285]
[1720317098611,3.57439531,3055.1,3055.0,6.62216285]
[1720317098800,3.57438683,3055.1,3055.0,6.62216285]
[1720317100098,2.14640175,3055.1,3055.0,6.62216285]
[1720317100514,0.05708026,3055.1,3055.0,9.89548285]
[1720317100751,6.006,3055.3,3055.0,9.89548285]
[1720317100752,6.006,3055.3,3055.2,9.8193]
[1720317100961,7.4870569,3055.6,3055.5,6.54556]
[1720317101146,8.62018678,3055.6,3055.5,6.54556]
[1720317101351,7.4870569,3055.6,3055.5,9.00677579]
[1720317101533,7.4870569,3055.6,3055.5,12.27955579]
[1720317101730,7.43,3055.6,3055.5,12.27955579]
[1720317105556,6.962,3056.0,3055.6,3.27263]
[1720317105729,6.006,3056.0,3055.9,6.5447]
[1720317105942,6.962,3056.0,3055.9,6.5447]
[1720317106140,6.962,3056.0,3055.9,6.61953599]
[1720317107162,6.006,3056.0,3055.9,6.61953599]
[1720317107456,6.962,3056.0,3055.9,6.61953599]
[1720317107623,6.006,3056.0,3055.9,9.89188599]
[1720317108266,0.0862618,3056.2,3056.1,6.54428]
[1720317108672,0.0862618,3056.2,3056.1,6.61907418]
[1720317112130,0.0862618,3056.2,3056.1,9.89121418]
[1720317113735,1.0422618,3056.2,3056.1,6.61907418]
[1720317115276,0.0862618,3056.2,3056.1,9.89121418]
[1720317117576,1.0422618,3056.2,3056.1,6.61907418]
[1720317118241,1.0422618,3056.2,3056.1,9.89121418]
[1720317118439,1.0422618,3056.2,3056.1,6.61907418]
[1720317118676,1.0422618,3056.2,3056.1,9.89121418]
[1720317119874,1.0422618,3056.2,3056.1,6.61907418]
[1720317120375,1.0422618,3056.2,3056.1,9.89121418]
[1720317121671,0.0862618,3056.2,3056.1,9.89121418]
[1720317122579,0.0862618,3056.2,3056.1,15.51515418]
[1720317122802,0.0862618,3056.2,3056.1,18.51515418]
[1720317122972,0.0862618,3056.2,3056.1,15.24301418]
[1720317124269,0.0862618,3056.2,3056.1,18.51515418]
[1720317124477,0.0862618,3056.2,3056.1,15.24301418]
[1720317125665,0.0862618,3056.2,3056.1,12.89121418]
[1720317125889,1.0422618,3056.2,3056.1,12.89121418]
[1720317126101,1.0422618,3056.2,3056.1,9.61907418]
[1720317126269,1.0422618,3056.2,3056.1,6.61907418]
[1720317127513,0.0862618,3056.2,3056.1,6.61907418]
[1720317127800,1.0422618,3056.2,3056.1,6.61907418]
[1720317128362,1.0422618,3056.2,3056.1,6.78107418]
[1720317128985,0.0862618,3056.2,3056.1,6.78107418]
[1720317130866,2.3678618,3056.2,3056.1,6.78107418]
[1720317131067,3.50073486,3056.2,3056.1,6.78107418]
[1720317131713,0.0862618,3056.2,3056.1,6.78107418]
[1720317132203,0.0862618,3056.2,3056.1,10.05321418]
[1720317132589,0.0862618,3056.2,3056.1,12.34001418]
[1720317132900,0.0862618,3056.2,3056.1,15.34001418]
[1720317133411,0.0862618,3056.2,3056.1,18.61215418]
[1720317133581,0.0862618,3056.2,3056.1,15.34001418]
[1720317133778,0.0862618,3056.2,3056.1,18.61215418]
[1720317133973,0.0862618,3056.2,3056.1,15.34001418]
[1720317135412,0.0862618,3056.2,3056.1,18.61215418]